[Event "Live Chess"]
[Site "Chess.com"]
[Date "2011.01.10"]
[Round "-"]
[White "64spaces"]
[Black "hipposcottimus"]
[Result "0-1"]
[CurrentPosition "5k2/5ppp/p7/1p6/3P4/1P1q1bP1/1P2RP1b/R1B2K2 w - -"]
[Timezone "UTC"]
[ECO "C48"]
[ECOUrl "https://www.chess.com/openings/Four-Knights-Game-Spanish-Variation"]
[UTCDate "2011.01.10"]
[UTCTime "22:04:54"]
[WhiteElo "1471"]
[BlackElo "1373"]
[TimeControl "540"]
[Termination "hipposcottimus won by resignation"]
[StartTime "22:04:54"]
[EndDate "2011.01.10"]
[EndTime "22:11:03"]
[Link "https://www.chess.com/game/live/86255558"]

1. e4 {[%clk 0:09:00]} 1... e5 {[%clk 0:09:00]} 2. Nf3 {[%clk 0:08:58]} 2... Nc6 {[%clk 0:08:59.7]} 3. Nc3 {[%clk 0:08:56.1]} 3... Nf6 {[%clk 0:08:58.9]} 4. Bb5 {[%clk 0:08:54.2]} 4... Na5 {[%clk 0:08:55.3]} 5. O-O {[%clk 0:08:51.1]} 5... a6 {[%clk 0:08:48.5]} 6. Ba4 {[%clk 0:08:48.8]} 6... c6 {[%clk 0:08:44.6]} 7. Nxe5 {[%clk 0:08:43.9]} 7... b5 {[%clk 0:08:41.8]} 8. Bb3 {[%clk 0:08:40]} 8... d5 {[%clk 0:08:34.1]} 9. exd5 {[%clk 0:08:35.1]} 9... Nxb3 {[%clk 0:08:32.5]} 10. axb3 {[%clk 0:08:26.8]} 10... cxd5 {[%clk 0:08:30.1]} 11. Qf3 {[%clk 0:08:22.3]} 11... Be7 {[%clk 0:08:14.3]} 12. Nxd5 {[%clk 0:08:19.1]} 12... O-O {[%clk 0:08:06.6]} 13. Nxf6+ {[%clk 0:08:12.5]} 13... Bxf6 {[%clk 0:08:06.3]} 14. Qxa8 {[%clk 0:08:09.8]} 14... Bxe5 {[%clk 0:07:20.9]} 15. Re1 {[%clk 0:08:06.6]} 15... Qc7 {[%clk 0:07:00.1]} 16. d3 {[%clk 0:07:43.1]} 16... Bxh2+ {[%clk 0:06:54.1]} 17. Kf1 {[%clk 0:07:40.7]} 17... Bb7 {[%clk 0:06:13]} 18. Qxf8+ {[%clk 0:07:25.8]} 18... Kxf8 {[%clk 0:06:10.4]} 19. g3 {[%clk 0:07:22]} 19... Qxc2 {[%clk 0:05:38.8]} 20. d4 {[%clk 0:06:57.2]} 20... Qd3+ {[%clk 0:05:26.3]} 21. Re2 {[%clk 0:06:54.1]} 21... Bf3 {[%clk 0:05:08.2]} 0-1

[Event "Live Chess"]
[Site "Chess.com"]
[Date "2011.01.10"]
[Round "-"]
[White "hipposcottimus"]
[Black "kirasjani"]
[Result "1-0"]
[CurrentPosition "6k1/1b1r3p/p1p2Qp1/5p2/2P5/1PB3N1/4RKPP/3r4 b - -"]
[Timezone "UTC"]
[ECO "C50"]
[ECOUrl "https://www.chess.com/openings/Italian-Game-3...d6-4.d4-exd4"]
[UTCDate "2011.01.10"]
[UTCTime "21:53:14"]
[WhiteElo "1373"]
[BlackElo "1200"]
[TimeControl "600"]
[Termination "hipposcottimus won by resignation"]
[StartTime "21:53:14"]
[EndDate "2011.01.10"]
[EndTime "22:02:57"]
[Link "https://www.chess.com/game/live/86252037"]

1. e4 {[%clk 0:10:00]} 1... e5 {[%clk 0:10:00]} 2. Nf3 {[%clk 0:09:57.1]} 2... Nc6 {[%clk 0:09:54.7]} 3. Bc4 {[%clk 0:09:56.7]} 3... d6 {[%clk 0:09:16.7]} 4. d4 {[%clk 0:09:52.3]} 4... exd4 {[%clk 0:09:12.9]} 5. Bb5 {[%clk 0:09:48.8]} 5... a6 {[%clk 0:09:05.3]} 6. Bxc6+ {[%clk 0:09:46.1]} 6... bxc6 {[%clk 0:09:02.2]} 7. Nxd4 {[%clk 0:09:45.1]} 7... c5 {[%clk 0:08:56.1]} 8. Ne2 {[%clk 0:09:30.9]} 8... g6 {[%clk 0:08:50.4]} 9. c4 {[%clk 0:09:22]} 9... Bg7 {[%clk 0:08:47.9]} 10. f4 {[%clk 0:09:15.5]} 10... Bb7 {[%clk 0:08:38.9]} 11. Nd2 {[%clk 0:09:10.9]} 11... Nf6 {[%clk 0:08:23.6]} 12. Ng3 {[%clk 0:09:05.5]} 12... Ng4 {[%clk 0:08:12.7]} 13. Qxg4 {[%clk 0:09:00.7]} 13... Bc8 {[%clk 0:08:08.3]} 14. Qd1 {[%clk 0:08:58.3]} 14... O-O {[%clk 0:08:01.1]} 15. O-O {[%clk 0:08:53.7]} 15... c6 {[%clk 0:07:41.8]} 16. Nf3 {[%clk 0:08:47.2]} 16... Qb6 {[%clk 0:07:39.2]} 17. Rb1 {[%clk 0:08:39.8]} 17... Qb4 {[%clk 0:07:31.9]} 18. b3 {[%clk 0:08:33]} 18... f5 {[%clk 0:07:20.1]} 19. Bd2 {[%clk 0:08:27.4]} 19... Qa3 {[%clk 0:07:13.2]} 20. e5 {[%clk 0:08:03.4]} 20... dxe5 {[%clk 0:07:06.1]} 21. fxe5 {[%clk 0:08:00.4]} 21... Qxa2 {[%clk 0:07:00.1]} 22. Rf2 {[%clk 0:07:49.5]} 22... Qa3 {[%clk 0:06:50.3]} 23. Ra1 {[%clk 0:07:33.2]} 23... Qb2 {[%clk 0:06:40.2]} 24. Rb1 {[%clk 0:07:11.8]} 24... Qa2 {[%clk 0:06:27.2]} 25. Ra1 {[%clk 0:07:01.7]} 25... Qb2 {[%clk 0:06:11.8]} 26. Be1 {[%clk 0:06:44.5]} 26... Bxe5 {[%clk 0:06:03.2]} 27. Rxb2 {[%clk 0:06:39.6]} 27... Bxb2 {[%clk 0:05:59.5]} 28. Ra2 {[%clk 0:06:38.8]} 28... Bd4+ {[%clk 0:05:43]} 29. Nxd4 {[%clk 0:06:35.3]} 29... cxd4 {[%clk 0:05:40.8]} 30. Qxd4 {[%clk 0:06:34.9]} 30... Bb7 {[%clk 0:05:36.7]} 31. Bb4 {[%clk 0:06:31.7]} 31... Rfd8 {[%clk 0:05:29]} 32. Qf6 {[%clk 0:06:13.8]} 32... Rd1+ {[%clk 0:05:24.2]} 33. Kf2 {[%clk 0:06:07.7]} 33... Rad8 {[%clk 0:05:10.8]} 34. Bc3 {[%clk 0:05:56.1]} 34... R8d7 {[%clk 0:05:02.9]} 35. Bb4 {[%clk 0:05:47.8]} 35... Rd8 {[%clk 0:04:56]} 36. Bc3 {[%clk 0:05:42.8]} 36... R8d7 {[%clk 0:04:53.7]} 37. Re2 {[%clk 0:05:42]} 1-0

[Event "Live Chess"]
[Site "Chess.com"]
[Date "2011.01.10"]
[Round "-"]
[White "kirasjani"]
[Black "hipposcottimus"]
[Result "0-1"]
[CurrentPosition "r3kr2/2p4p/pp4p1/8/4P3/P1P4q/1P3b2/RNB2R1K w q -"]
[Timezone "UTC"]
[ECO "C45"]
[ECOUrl "https://www.chess.com/openings/Scotch-Game"]
[UTCDate "2011.01.10"]
[UTCTime "21:43:34"]
[WhiteElo "1200"]
[BlackElo "1373"]
[TimeControl "600"]
[Termination "hipposcottimus won by checkmate"]
[StartTime "21:43:34"]
[EndDate "2011.01.10"]
[EndTime "21:51:30"]
[Link "https://www.chess.com/game/live/86249649"]

1. e4 {[%clk 0:10:00]} 1... e5 {[%clk 0:10:00]} 2. Nf3 {[%clk 0:09:56.4]} 2... Nc6 {[%clk 0:09:58.9]} 3. d4 {[%clk 0:09:51.1]} 3... d5 {[%clk 0:09:57.1]} 4. dxe5 {[%clk 0:09:45.5]} 4... d4 {[%clk 0:09:50.8]} 5. a3 {[%clk 0:09:28.5]} 5... f6 {[%clk 0:09:46.8]} 6. exf6 {[%clk 0:09:13.4]} 6... Nxf6 {[%clk 0:09:40.7]} 7. Qd3 {[%clk 0:08:59.1]} 7... Ng4 {[%clk 0:09:31.4]} 8. h3 {[%clk 0:08:50.1]} 8... Nge5 {[%clk 0:09:28.5]} 9. Nxe5 {[%clk 0:08:44.6]} 9... Nxe5 {[%clk 0:09:26.3]} 10. Qb5+ {[%clk 0:08:36.9]} 10... Nc6 {[%clk 0:09:22.5]} 11. Bc4 {[%clk 0:08:25.8]} 11... Bd7 {[%clk 0:09:14.5]} 12. Ba2 {[%clk 0:08:22.5]} 12... b6 {[%clk 0:09:08.6]} 13. h4 {[%clk 0:08:16.9]} 13... a6 {[%clk 0:09:07.1]} 14. Qh5+ {[%clk 0:08:06.8]} 14... g6 {[%clk 0:09:03.6]} 15. Qf3 {[%clk 0:07:59]} 15... Ne5 {[%clk 0:08:56.5]} 16. Qf4 {[%clk 0:07:38.2]} 16... Bd6 {[%clk 0:08:52.1]} 17. O-O {[%clk 0:07:19.7]} 17... Rf8 {[%clk 0:08:44]} 18. Qd2 {[%clk 0:07:06.4]} 18... Bc5 {[%clk 0:08:35.1]} 19. c3 {[%clk 0:06:36.8]} 19... d3 {[%clk 0:08:31.1]} 20. Bc4 {[%clk 0:06:03.5]} 20... Qf6 {[%clk 0:08:15.1]} 21. Bxd3 {[%clk 0:05:47.8]} 21... Nxd3 {[%clk 0:07:59.8]} 22. Qxd3 {[%clk 0:05:40.1]} 22... Bxf2+ {[%clk 0:07:56.4]} 23. Kh2 {[%clk 0:05:06.2]} 23... Qxh4+ {[%clk 0:07:53.6]} 24. Qh3 {[%clk 0:05:02.4]} 24... Bxh3 {[%clk 0:07:43.4]} 25. gxh3 {[%clk 0:04:53.9]} 25... Qg3+ {[%clk 0:07:34.9]} 26. Kh1 {[%clk 0:04:43]} 26... Qxh3# {[%clk 0:07:34]} 0-1

[Event "Live Chess"]
[Site "Chess.com"]
[Date "2011.01.10"]
[Round "-"]
[White "BR33"]
[Black "hipposcottimus"]
[Result "1-0"]
[CurrentPosition "2R3k1/7p/p5pb/1p1PPQ2/1P2P2q/8/PP1B4/3K2R1 b - -"]
[Timezone "UTC"]
[ECO "D02"]
[ECOUrl "https://www.chess.com/openings/Queens-Pawn-Opening-Anti-Torre-Attack"]
[UTCDate "2011.01.10"]
[UTCTime "18:58:54"]
[WhiteElo "1223"]
[BlackElo "1373"]
[TimeControl "600"]
[Termination "BR33 won by resignation"]
[StartTime "18:58:54"]
[EndDate "2011.01.10"]
[EndTime "19:13:36"]
[Link "https://www.chess.com/game/live/86202105"]

1. d4 {[%clk 0:10:00]} 1... d5 {[%clk 0:10:00]} 2. Nf3 {[%clk 0:09:58.7]} 2... Bg4 {[%clk 0:09:57.5]} 3. e3 {[%clk 0:09:56.3]} 3... Nf6 {[%clk 0:09:55]} 4. h3 {[%clk 0:09:55.3]} 4... Bh5 {[%clk 0:09:53.5]} 5. g4 {[%clk 0:09:53.5]} 5... Nxg4 {[%clk 0:09:50.9]} 6. hxg4 {[%clk 0:09:51.6]} 6... Bxg4 {[%clk 0:09:50.1]} 7. Be2 {[%clk 0:09:50.3]} 7... Nc6 {[%clk 0:09:40.7]} 8. Nh4 {[%clk 0:09:44.5]} 8... Bxe2 {[%clk 0:09:18.8]} 9. Qxe2 {[%clk 0:09:42.6]} 9... e5 {[%clk 0:09:17.9]} 10. Nf3 {[%clk 0:09:37.8]} 10... e4 {[%clk 0:09:13.4]} 11. Nfd2 {[%clk 0:09:33.8]} 11... Bd6 {[%clk 0:09:06.9]} 12. Nc3 {[%clk 0:09:32.4]} 12... Qg5 {[%clk 0:09:01.8]} 13. Nb5 {[%clk 0:09:25.8]} 13... Qg2 {[%clk 0:08:39.1]} 14. Rf1 {[%clk 0:09:15.6]} 14... Bh2 {[%clk 0:08:35.1]} 15. f3 {[%clk 0:09:00.7]} 15... Bg3+ {[%clk 0:08:26.6]} 16. Kd1 {[%clk 0:08:50.7]} 16... Qh3 {[%clk 0:07:26]} 17. fxe4 {[%clk 0:08:28.4]} 17... Nb4 {[%clk 0:07:21.1]} 18. e5 {[%clk 0:08:01.2]} 18... O-O {[%clk 0:07:15.2]} 19. c3 {[%clk 0:07:29.1]} 19... a6 {[%clk 0:07:06.1]} 20. Nxc7 {[%clk 0:07:16.2]} 20... Rac8 {[%clk 0:06:58.1]} 21. cxb4 {[%clk 0:07:11]} 21... Rxc7 {[%clk 0:06:56.5]} 22. e4 {[%clk 0:06:14.8]} 22... Rc4 {[%clk 0:06:19]} 23. Nxc4 {[%clk 0:05:42]} 23... dxc4 {[%clk 0:05:59.5]} 24. Qxc4 {[%clk 0:05:34.6]} 24... b5 {[%clk 0:05:14.9]} 25. Qd3 {[%clk 0:05:06]} 25... Qg4+ {[%clk 0:05:06.4]} 26. Qe2 {[%clk 0:04:54.2]} 26... Qd7 {[%clk 0:05:03.2]} 27. Qe3 {[%clk 0:04:33]} 27... Bh4 {[%clk 0:04:51]} 28. Bd2 {[%clk 0:04:19.3]} 28... Rc8 {[%clk 0:04:49.8]} 29. Bc3 {[%clk 0:04:15.5]} 29... Qg4+ {[%clk 0:04:35]} 30. Qe2 {[%clk 0:04:11.8]} 30... Qg5 {[%clk 0:04:25.8]} 31. Rc1 {[%clk 0:03:59.1]} 31... Qd8 {[%clk 0:04:07.2]} 32. Rc2 {[%clk 0:03:52]} 32... Bg5 {[%clk 0:04:02.9]} 33. Rg1 {[%clk 0:03:42.3]} 33... Rc6 {[%clk 0:03:44.8]} 34. d5 {[%clk 0:03:33.7]} 34... Rc4 {[%clk 0:03:41.1]} 35. Qg4 {[%clk 0:03:22.8]} 35... Bh6 {[%clk 0:03:38.2]} 36. Bd2 {[%clk 0:03:15.5]} 36... f5 {[%clk 0:03:27.5]} 37. Qxf5 {[%clk 0:02:59.5]} 37... Qh4 {[%clk 0:03:16.1]} 38. Rxc4 {[%clk 0:02:47.1]} 38... g6 {[%clk 0:02:56.8]} 39. Rc8+ {[%clk 0:02:40.5]} 1-0

[Event "Live Chess"]
[Site "Chess.com"]
[Date "2011.01.10"]
[Round "-"]
[White "hipposcottimus"]
[Black "noseporke"]
[Result "0-1"]
[CurrentPosition "5k2/4pprn/3p4/2p5/p1P1PQ2/2q1K1PR/7P/8 w - -"]
[Timezone "UTC"]
[ECO "B54"]
[ECOUrl "https://www.chess.com/openings/Sicilian-Defense-Open-Prins-Variation-5...g6"]
[UTCDate "2011.01.10"]
[UTCTime "00:01:19"]
[WhiteElo "1384"]
[BlackElo "1364"]
[TimeControl "600"]
[Termination "noseporke won on time"]
[StartTime "00:01:19"]
[EndDate "2011.01.10"]
[EndTime "00:18:21"]
[Link "https://www.chess.com/game/live/85948671"]

1. e4 {[%clk 0:10:00]} 1... c5 {[%clk 0:10:00]} 2. Nf3 {[%clk 0:09:55.4]} 2... d6 {[%clk 0:09:51.5]} 3. d4 {[%clk 0:09:52.6]} 3... cxd4 {[%clk 0:09:49.6]} 4. Nxd4 {[%clk 0:09:46.9]} 4... Nf6 {[%clk 0:09:47.9]} 5. f3 {[%clk 0:09:40.1]} 5... g6 {[%clk 0:09:42.8]} 6. Nd2 {[%clk 0:09:17.2]} 6... Nc6 {[%clk 0:09:39.2]} 7. Bb5 {[%clk 0:09:12.4]} 7... Bd7 {[%clk 0:09:29.5]} 8. Bxc6 {[%clk 0:09:07.7]} 8... bxc6 {[%clk 0:09:24.8]} 9. N2b3 {[%clk 0:07:48.2]} 9... Bg7 {[%clk 0:09:21.4]} 10. c3 {[%clk 0:07:43.6]} 10... O-O {[%clk 0:09:15.3]} 11. O-O {[%clk 0:07:39]} 11... c5 {[%clk 0:08:47.9]} 12. Ne2 {[%clk 0:07:15.2]} 12... Qb6 {[%clk 0:08:44.2]} 13. Be3 {[%clk 0:07:01.3]} 13... Ba4 {[%clk 0:08:21.6]} 14. Qd2 {[%clk 0:06:38.4]} 14... Bxb3 {[%clk 0:08:14.9]} 15. axb3 {[%clk 0:06:37]} 15... Qxb3 {[%clk 0:08:13.3]} 16. Ng3 {[%clk 0:06:17]} 16... Nd7 {[%clk 0:08:03.9]} 17. f4 {[%clk 0:06:05.3]} 17... a5 {[%clk 0:07:28.9]} 18. f5 {[%clk 0:06:01.8]} 18... a4 {[%clk 0:07:20.9]} 19. Ra3 {[%clk 0:05:58.2]} 19... Qc4 {[%clk 0:07:00.7]} 20. Bh6 {[%clk 0:05:29.9]} 20... Nf6 {[%clk 0:06:20]} 21. Rf4 {[%clk 0:05:17.3]} 21... Bxh6 {[%clk 0:06:14.4]} 22. fxg6 {[%clk 0:04:59.5]} 22... Bxf4 {[%clk 0:06:06.6]} 23. gxh7+ {[%clk 0:04:57.3]} 23... Nxh7 {[%clk 0:05:46.1]} 24. Qxf4 {[%clk 0:04:53.9]} 24... Qe6 {[%clk 0:05:37.6]} 25. Nf5 {[%clk 0:04:47.9]} 25... Kh8 {[%clk 0:05:05.1]} 26. c4 {[%clk 0:04:41.8]} 26... Rg8 {[%clk 0:04:57.5]} 27. Nh6 {[%clk 0:04:34.8]} 27... Rg7 {[%clk 0:04:16.8]} 28. Rh3 {[%clk 0:04:21.3]} 28... Qg6 {[%clk 0:03:57.1]} 29. g3 {[%clk 0:03:47.4]} 29... Rag8 {[%clk 0:03:18.5]} 30. Nxg8 {[%clk 0:03:38.1]} 30... Kxg8 {[%clk 0:03:14.6]} 31. Qh4 {[%clk 0:03:21.7]} 31... Kf8 {[%clk 0:02:34.1]} 32. Kf2 {[%clk 0:03:13.6]} 32... Qf6+ {[%clk 0:02:29.5]} 33. Qf4 {[%clk 0:01:10.6]} 33... Qxb2+ {[%clk 0:02:26.4]} 34. Ke3 {[%clk 0:00:53.3]} 34... Qc3+ {[%clk 0:02:21.7]} 0-1

[Event "Live Chess"]
[Site "Chess.com"]
[Date "2011.01.09"]
[Round "-"]
[White "ZAZA2001"]
[Black "hipposcottimus"]
[Result "0-1"]
[CurrentPosition "8/8/8/kp4pp/p7/6Pq/3r4/5RRK w - -"]
[Timezone "UTC"]
[ECO "C23"]
[ECOUrl "https://www.chess.com/openings/Bishops-Opening-2...Nc6"]
[UTCDate "2011.01.09"]
[UTCTime "23:02:26"]
[WhiteElo "1133"]
[BlackElo "1384"]
[TimeControl "600"]
[Termination "hipposcottimus won by checkmate"]
[StartTime "23:02:26"]
[EndDate "2011.01.09"]
[EndTime "23:19:39"]
[Link "https://www.chess.com/game/live/85934729"]

1. e4 {[%clk 0:10:00]} 1... e5 {[%clk 0:10:00]} 2. Bc4 {[%clk 0:09:55.2]} 2... Nc6 {[%clk 0:09:50.9]} 3. c3 {[%clk 0:09:52.8]} 3... Bc5 {[%clk 0:09:41.5]} 4. Qh5 {[%clk 0:09:48.2]} 4... g6 {[%clk 0:09:38.3]} 5. Qf3 {[%clk 0:09:45.9]} 5... Nf6 {[%clk 0:09:36.8]} 6. b4 {[%clk 0:09:40.7]} 6... d5 {[%clk 0:09:23.2]} 7. exd5 {[%clk 0:09:37.3]} 7... e4 {[%clk 0:09:21.4]} 8. Qe2 {[%clk 0:09:23.7]} 8... Nxb4 {[%clk 0:09:05.2]} 9. cxb4 {[%clk 0:09:20.2]} 9... Bxb4 {[%clk 0:09:03.1]} 10. a3 {[%clk 0:09:13.1]} 10... Ba5 {[%clk 0:08:58.6]} 11. Bb2 {[%clk 0:09:08.3]} 11... O-O {[%clk 0:08:50.5]} 12. f3 {[%clk 0:08:47.6]} 12... Nxd5 {[%clk 0:08:38.1]} 13. fxe4 {[%clk 0:08:32.2]} 13... Nb6 {[%clk 0:08:26.1]} 14. Ba2 {[%clk 0:08:24.9]} 14... Re8 {[%clk 0:08:20.2]} 15. Qb5 {[%clk 0:08:12.4]} 15... Rxe4+ {[%clk 0:08:02.2]} 16. Ne2 {[%clk 0:08:09.7]} 16... Nc4 {[%clk 0:07:33]} 17. Bxc4 {[%clk 0:07:59.9]} 17... c6 {[%clk 0:07:27.9]} 18. Qb3 {[%clk 0:07:40.9]} 18... Bg4 {[%clk 0:07:13.4]} 19. Bxf7+ {[%clk 0:07:27]} 19... Kf8 {[%clk 0:07:01.5]} 20. Bc4 {[%clk 0:07:05.2]} 20... Bb6 {[%clk 0:06:38.8]} 21. Rf1+ {[%clk 0:06:58.4]} 21... Ke8 {[%clk 0:06:06.8]} 22. Bf7+ {[%clk 0:06:52.7]} 22... Kd7 {[%clk 0:06:05]} 23. Qd3+ {[%clk 0:06:47.4]} 23... Kc7 {[%clk 0:05:49.1]} 24. Qxe4 {[%clk 0:06:41.9]} 24... Bxe2 {[%clk 0:05:32.7]} 25. Qxe2 {[%clk 0:06:34.7]} 25... Qh4+ {[%clk 0:05:18.4]} 26. Qf2 {[%clk 0:06:20]} 26... Bxf2+ {[%clk 0:05:09]} 27. Rxf2 {[%clk 0:06:17.1]} 27... Qe7+ {[%clk 0:05:06.7]} 28. Kf1 {[%clk 0:06:14.7]} 28... Qd6 {[%clk 0:04:58.3]} 29. g3 {[%clk 0:06:06.9]} 29... Qd3+ {[%clk 0:04:49.4]} 30. Kg1 {[%clk 0:05:51.5]} 30... Qc2 {[%clk 0:04:46.3]} 31. Be5+ {[%clk 0:05:46.1]} 31... Kb6 {[%clk 0:04:31.8]} 32. Nc3 {[%clk 0:05:37.4]} 32... a5 {[%clk 0:03:55.3]} 33. d4 {[%clk 0:05:29.4]} 33... Qxc3 {[%clk 0:03:43.1]} 34. Rb1+ {[%clk 0:05:25.8]} 34... Ka6 {[%clk 0:03:38.9]} 35. Rff1 {[%clk 0:05:16.8]} 35... Qxa3 {[%clk 0:03:30.5]} 36. Bc4+ {[%clk 0:05:04]} 36... b5 {[%clk 0:03:18.7]} 37. Bb3 {[%clk 0:04:59.2]} 37... a4 {[%clk 0:03:09.7]} 38. Bc2 {[%clk 0:04:46.1]} 38... Rg8 {[%clk 0:02:52.8]} 39. d5 {[%clk 0:04:34.2]} 39... Qe3+ {[%clk 0:02:44.6]} 40. Kg2 {[%clk 0:04:22.5]} 40... Qxe5 {[%clk 0:02:41.9]} 41. dxc6 {[%clk 0:04:19.2]} 41... Qd5+ {[%clk 0:02:38.7]} 42. Kg1 {[%clk 0:04:12.9]} 42... Qc5+ {[%clk 0:02:32.9]} 43. Kg2 {[%clk 0:03:59.8]} 43... Qxc6+ {[%clk 0:02:17.7]} 44. Kh3 {[%clk 0:03:58.1]} 44... Qxc2 {[%clk 0:02:16]} 45. Rbc1 {[%clk 0:03:54.7]} 45... Qe2 {[%clk 0:02:03.9]} 46. Rc6+ {[%clk 0:03:38.9]} 46... Ka5 {[%clk 0:02:02.3]} 47. Rcf6 {[%clk 0:03:32]} 47... h6 {[%clk 0:01:49.8]} 48. R6f2 {[%clk 0:03:29.6]} 48... Qe4 {[%clk 0:01:38.9]} 49. Rg2 {[%clk 0:03:17.9]} 49... h5 {[%clk 0:01:31.6]} 50. Rgg1 {[%clk 0:03:15.4]} 50... g5 {[%clk 0:01:26.4]} 51. Re1 {[%clk 0:03:13.1]} 51... Qf3 {[%clk 0:01:11.8]} 52. Ref1 {[%clk 0:03:08.8]} 52... Qg4+ {[%clk 0:00:56.8]} 53. Kg2 {[%clk 0:03:02.8]} 53... Rd8 {[%clk 0:00:55.2]} 54. h3 {[%clk 0:02:59.9]} 54... Rd2+ {[%clk 0:00:29.4]} 55. Kh1 {[%clk 0:02:54.2]} 55... Qxh3# {[%clk 0:00:21]} 0-1

[Event "Live Chess"]
[Site "Chess.com"]
[Date "2011.01.09"]
[Round "-"]
[White "hipposcottimus"]
[Black "ghostwet"]
[Result "1-0"]
[CurrentPosition "r2qkb1r/3pnQ2/p1n5/6N1/4P2p/2N4P/PP4PB/R3K2R b KQkq -"]
[Timezone "UTC"]
[ECO "A40"]
[ECOUrl "https://www.chess.com/openings/Queens-Pawn-Opening-St-George-Defense-2.c4-b5-3.e4"]
[UTCDate "2011.01.09"]
[UTCTime "22:57:39"]
[WhiteElo "1384"]
[BlackElo "1167"]
[TimeControl "780"]
[Termination "hipposcottimus won by checkmate"]
[StartTime "22:57:39"]
[EndDate "2011.01.09"]
[EndTime "23:01:10"]
[Link "https://www.chess.com/game/live/85933676"]

1. e4 {[%clk 0:13:00]} 1... a6 {[%clk 0:13:00]} 2. d4 {[%clk 0:12:58.6]} 2... b5 {[%clk 0:12:56.2]} 3. c4 {[%clk 0:12:44.9]} 3... bxc4 {[%clk 0:12:51.7]} 4. Bxc4 {[%clk 0:12:43.1]} 4... Bb7 {[%clk 0:12:50.2]} 5. Nc3 {[%clk 0:12:38.3]} 5... e6 {[%clk 0:12:46.6]} 6. d5 {[%clk 0:12:25.6]} 6... e5 {[%clk 0:12:41.3]} 7. f4 {[%clk 0:12:16.8]} 7... exf4 {[%clk 0:12:34.1]} 8. Bxf4 {[%clk 0:12:08.2]} 8... g5 {[%clk 0:12:28.8]} 9. Bg3 {[%clk 0:11:58.6]} 9... h5 {[%clk 0:12:20.5]} 10. h3 {[%clk 0:11:38.4]} 10... h4 {[%clk 0:12:13.6]} 11. Bh2 {[%clk 0:11:32.2]} 11... c6 {[%clk 0:11:50.7]} 12. Nf3 {[%clk 0:11:23.2]} 12... cxd5 {[%clk 0:11:46.7]} 13. Bxd5 {[%clk 0:11:17.7]} 13... Bxd5 {[%clk 0:11:41.7]} 14. Qxd5 {[%clk 0:11:17.4]} 14... Nc6 {[%clk 0:11:35.9]} 15. Nxg5 {[%clk 0:11:15.6]} 15... Nge7 {[%clk 0:11:26.6]} 16. Qxf7# {[%clk 0:11:10.5]} 1-0

[Event "Live Chess"]
[Site "Chess.com"]
[Date "2011.01.09"]
[Round "-"]
[White "paylos1958"]
[Black "hipposcottimus"]
[Result "1-0"]
[CurrentPosition "1b6/3N1k2/p1q4p/1p2PQ2/1P4n1/P1B3P1/4K2P/R2R4 b - -"]
[Timezone "UTC"]
[ECO "D10"]
[ECOUrl "https://www.chess.com/openings/Slav-Defense-3.Nc3-Nf6"]
[UTCDate "2011.01.09"]
[UTCTime "22:21:44"]
[WhiteElo "1239"]
[BlackElo "1380"]
[TimeControl "780"]
[Termination "paylos1958 won by resignation"]
[StartTime "22:21:44"]
[EndDate "2011.01.09"]
[EndTime "22:36:16"]
[Link "https://www.chess.com/game/live/85924539"]

1. d4 {[%clk 0:13:00]} 1... d5 {[%clk 0:13:00]} 2. c4 {[%clk 0:12:59.1]} 2... c6 {[%clk 0:12:55.4]} 3. Nc3 {[%clk 0:12:56.9]} 3... Nf6 {[%clk 0:12:53.2]} 4. Nf3 {[%clk 0:12:53.8]} 4... e6 {[%clk 0:12:52]} 5. e3 {[%clk 0:12:51.1]} 5... Bb4 {[%clk 0:12:50.2]} 6. Bd2 {[%clk 0:12:49]} 6... Nbd7 {[%clk 0:12:39.1]} 7. cxd5 {[%clk 0:12:42.8]} 7... cxd5 {[%clk 0:12:34.7]} 8. Bb5 {[%clk 0:12:26.3]} 8... O-O {[%clk 0:12:29.7]} 9. O-O {[%clk 0:12:22.7]} 9... a6 {[%clk 0:12:19.4]} 10. Ba4 {[%clk 0:12:17.3]} 10... b5 {[%clk 0:12:16.8]} 11. Bc2 {[%clk 0:12:12.7]} 11... Ng4 {[%clk 0:12:01.9]} 12. a3 {[%clk 0:11:58.1]} 12... Bd6 {[%clk 0:11:46.4]} 13. g3 {[%clk 0:11:53.2]} 13... e5 {[%clk 0:11:36.5]} 14. Bb3 {[%clk 0:11:41.2]} 14... exd4 {[%clk 0:10:54]} 15. Nxd4 {[%clk 0:11:20]} 15... f6 {[%clk 0:10:27.3]} 16. Qxg4 {[%clk 0:11:15.7]} 16... Nc5 {[%clk 0:10:25]} 17. Qd1 {[%clk 0:11:11.9]} 17... Bh3 {[%clk 0:09:33.9]} 18. Bxd5+ {[%clk 0:11:03.8]} 18... Kh8 {[%clk 0:09:30.8]} 19. Bg2 {[%clk 0:10:59.6]} 19... Bxg2 {[%clk 0:09:26.6]} 20. Kxg2 {[%clk 0:10:58.3]} 20... f5 {[%clk 0:09:20]} 21. b4 {[%clk 0:10:47.9]} 21... Nd3 {[%clk 0:09:02.9]} 22. Ne6 {[%clk 0:10:38]} 22... Qc8 {[%clk 0:08:32.1]} 23. Nxf8 {[%clk 0:10:32.6]} 23... Qc6+ {[%clk 0:08:29.4]} 24. f3 {[%clk 0:10:27.3]} 24... Rxf8 {[%clk 0:08:24.7]} 25. Qe2 {[%clk 0:10:23.2]} 25... Ne5 {[%clk 0:08:08.8]} 26. e4 {[%clk 0:10:09.5]} 26... Nc4 {[%clk 0:07:55.1]} 27. Nd5 {[%clk 0:10:00.1]} 27... h6 {[%clk 0:07:24.7]} 28. Bc3 {[%clk 0:09:43.2]} 28... Kh7 {[%clk 0:07:19.2]} 29. Rfd1 {[%clk 0:09:18.9]} 29... g5 {[%clk 0:07:14.6]} 30. e5 {[%clk 0:09:12.9]} 30... Bb8 {[%clk 0:06:39.8]} 31. Nf6+ {[%clk 0:08:59.9]} 31... Kg6 {[%clk 0:06:33.1]} 32. Nd7 {[%clk 0:08:57.3]} 32... g4 {[%clk 0:05:22.7]} 33. Nxf8+ {[%clk 0:08:45.4]} 33... Kf7 {[%clk 0:05:18.4]} 34. Nd7 {[%clk 0:08:40.4]} 34... gxf3+ {[%clk 0:05:15.5]} 35. Qxf3 {[%clk 0:08:38.8]} 35... Ne3+ {[%clk 0:05:12.3]} 36. Kf2 {[%clk 0:08:30.6]} 36... Ng4+ {[%clk 0:04:40]} 37. Ke2 {[%clk 0:08:18.6]} 37... Qc4+ {[%clk 0:04:09.3]} 38. Qd3 {[%clk 0:08:12]} 38... Qc6 {[%clk 0:03:43.4]} 39. Qxf5+ {[%clk 0:08:04.6]} 1-0